bitfinex/quotes_SOLUSD_20251223
["timestamp","ask_amount","ask_price","bid_price","bid_amount"]
[1766450229474,0.1,126.56,126.54,0.66]
[1766450230781,2.30622354,126.55,126.51,0.66]
[1766450230984,2.71622354,126.56,126.52,0.66]
[1766450231194,0.41,126.56,126.52,0.66]
[1766450231403,0.41,126.56,126.53,0.66]
[1766450233100,0.1,126.56,126.53,0.66]
[1766450233286,0.1,126.56,126.54,0.66]
[1766450239195,2.40622354,126.56,126.52,0.66]
[1766450239399,2.71622354,126.56,126.52,0.66]
[1766450239803,0.1,126.56,126.53,0.66]
[1766450243279,14.52,126.61,126.56,0.66]
[1766450243602,2.71622354,126.59,126.56,0.66]
[1766450243988,2.71622354,126.58,126.54,0.66]
[1766450244189,2.71622354,126.57,126.54,0.66]
[1766450244597,25.03671187,126.58,126.54,0.66]
[1766450245904,22.73048833,126.58,126.54,0.66]
[1766450246094,25.03671187,126.58,126.54,0.66]
[1766450247101,22.73048833,126.58,126.54,0.66]
[1766450247406,25.03671187,126.58,126.54,0.66]
[1766450248900,17.13622354,126.58,126.54,0.66]
[1766450251304,17.13622354,126.58,126.54,0.72]
[1766450251717,17.13622354,126.58,126.54,2.30622354]
[1766450252029,17.13622354,126.58,126.55,0.72]
[1766450253903,14.42,126.58,126.55,2.30622354]
[1766450254105,14.83,126.58,126.55,0.72]
[1766450254704,0.41,126.58,126.55,0.72]
[1766450259522,25.03597324,126.59,126.55,0.72]
[1766450260408,10.61597324,126.59,126.55,0.72]
[1766450260609,17.13622354,126.59,126.55,0.72]
[1766450263318,14.83,126.59,126.56,0.69]
[1766450265203,26.32885068,126.6,126.56,0.69]
[1766450266229,36.86594053,126.61,126.57,0.69]
[1766450266732,33.26618028,126.61,126.57,0.69]
[1766450266912,4.10976025,126.61,126.57,0.69]
[1766450267231,4.00976025,126.6,126.57,0.69]
[1766450267415,3.59976025,126.59,126.57,0.69]
[1766450267917,14.83,126.6,126.57,0.69]
[1766450268115,18.42976025,126.6,126.57,0.69]
[1766450268833,14.83,126.6,126.57,0.69]
[1766450269425,14.42,126.6,126.57,0.69]
[1766450269624,3.69976025,126.61,126.57,0.69]
[1766450269922,0.1,126.61,126.57,0.69]
[1766450270704,5.18662846,126.6,126.57,0.69]
[1766450270902,0.1,126.61,126.57,0.69]
[1766450271125,5.14807456,126.6,126.57,0.69]
[1766450271325,0.1,126.61,126.57,0.69]
[1766450271531,5.14745488,126.6,126.57,0.69]
[1766450271718,0.1,126.61,126.57,0.69]
[1766450271916,0.1,126.61,126.58,0.69]
[1766450271917,5.14745488,126.6,126.58,0.69]
[1766450272122,0.1,126.61,126.58,0.69]
[1766450272307,5.14701533,126.6,126.58,0.69]
[1766450272505,0.1,126.61,126.58,0.69]
[1766450272709,5.14701313,126.6,126.58,0.69]
[1766450272931,0.1,126.61,126.58,0.69]
[1766450273104,5.14701313,126.6,126.58,0.69]
[1766450273304,0.1,126.61,126.58,0.69]
[1766450273505,5.14673358,126.6,126.58,0.69]
[1766450273728,0.1,126.61,126.58,0.69]
[1766450273927,5.14630982,126.6,126.58,0.69]
[1766450274135,0.1,126.61,126.58,0.69]
[1766450277325,0.1,126.61,126.59,0.69]
[1766450283031,7.89787195,126.62,126.59,0.69]
[1766450283843,8.40787195,126.62,126.59,0.69]
[1766450284955,12.0076322,126.62,126.59,0.69]
[1766450286544,5.10549004,126.61,126.59,0.69]
[1766450286778,3.59976025,126.61,126.56,0.66]
[1766450287064,5.61615057,126.6,126.57,0.66]
[1766450287239,0.51,126.6,126.57,0.66]
[1766450287741,4.10976025,126.61,126.57,0.66]
[1766450287944,5.10670013,126.6,126.57,0.66]
[1766450288145,4.10976025,126.61,126.57,0.66]
[1766450288456,5.10710148,126.6,126.57,0.66]
[1766450288660,8.40830592,126.61,126.57,0.66]
[1766450288846,5.10709043,126.6,126.57,0.66]
[1766450289044,8.40830592,126.61,126.57,0.66]
[1766450289244,5.10709263,126.6,126.57,0.66]
[1766450289550,8.40830592,126.61,126.57,0.66]
[1766450289750,5.10731935,126.6,126.57,0.66]
[1766450289955,8.40830592,126.61,126.57,0.66]
[1766450290144,5.10731935,126.6,126.58,0.66]
[1766450290346,8.40830592,126.61,126.58,0.66]
[1766450290556,5.10751332,126.6,126.58,0.66]
[1766450290735,8.40830592,126.61,126.58,0.66]
[1766450291053,5.10751552,126.6,126.58,0.66]
[1766450291358,8.40830592,126.61,126.58,0.66]
[1766450291544,5.10775511,126.6,126.58,0.66]
[1766450291859,8.40830592,126.61,126.58,0.66]
[1766450292059,5.10775732,126.6,126.58,0.66]
[1766450292261,8.40830592,126.61,126.58,0.66]
[1766450292454,5.10824751,126.6,126.58,0.66]
[1766450292648,8.40830592,126.61,126.58,0.66]
[1766450292849,5.10824972,126.6,126.58,0.66]
[1766450293044,0.51,126.61,126.58,0.66]
[1766450293258,5.10824751,126.6,126.58,0.66]
[1766450293446,8.40751945,126.63,126.58,3.59976025]
[1766450293647,5.61857955,126.62,126.59,0.66]
[1766450293846,5.10857955,126.61,126.57,10.43767296]
[1766450294161,0.51,126.61,126.58,0.66]
[1766450298157,8.40832308,126.61,126.58,0.66]
[1766450300260,5.1122725,126.6,126.58,0.66]
[1766450300455,0.51,126.6,126.56,14.03743321]
[1766450300858,5.80289075,126.59,126.56,11.09767296]
[1766450301169,5.29289075,126.58,126.56,0.66]
[1766450302171,0.51,126.59,126.56,0.66]
[1766450302468,5.29323042,126.58,126.56,0.66]
[1766450302672,11.49917334,126.6,126.56,0.66]
[1766450302858,5.80322816,126.59,126.56,0.66]
[1766450303166,5.29322816,126.58,126.56,0.66]
[1766450303371,0.51,126.59,126.56,0.66]
[1766450303569,5.29364558,126.58,126.56,0.66]
[1766450303742,0.51,126.59,126.56,0.66]
[1766450303947,5.29364558,126.58,126.56,0.66]
[1766450304143,0.51,126.59,126.56,0.66]
[1766450304345,5.29408194,126.58,126.56,0.66]
[1766450304543,0.51,126.59,126.56,0.66]
[1766450304744,5.29408194,126.58,126.56,0.66]
[1766450304974,8.40953781,126.59,126.56,0.66]
[1766450305273,5.29408419,126.58,126.56,0.66]
[1766450305451,0.51,126.58,126.56,0.66]
[1766450305653,0.51,126.59,126.56,0.66]
[1766450305852,5.29454523,126.58,126.56,0.66]
[1766450306052,0.51,126.59,126.56,0.66]
[1766450306361,5.29454297,126.58,126.56,0.66]
[1766450306568,0.51,126.59,126.56,0.66]
[1766450306768,5.29502331,126.58,126.56,0.66]
[1766450307073,0.51,126.59,126.56,0.66]
[1766450307248,5.29547364,126.58,126.56,0.66]
[1766450307453,0.51,126.59,126.56,0.66]
[1766450307675,5.29552308,126.58,126.57,4.25976025]
[1766450307851,5.29552308,126.58,126.57,0.66]
[1766450308054,26.42839123,126.61,126.57,0.66]
[1766450308373,5.29495469,126.6,126.57,0.66]
[1766450308575,5.29495469,126.59,126.57,0.66]
[1766450308761,26.42839123,126.61,126.57,0.66]
[1766450308949,5.72288702,126.6,126.57,0.66]
[1766450309146,5.21288702,126.59,126.57,0.66]
[1766450309352,0.51,126.6,126.57,0.66]
[1766450309558,5.21359002,126.59,126.57,0.66]
[1766450309758,14.42,126.61,126.57,3.59976025]
[1766450309980,5.21358551,126.6,126.58,0.66]
[1766450310178,5.21358551,126.59,126.58,0.66]
[1766450315058,4.49358551,126.59,126.58,4.25976025]
[1766450316685,4.49358551,126.59,126.58,0.66]
[1766450316977,0.68,126.62,126.59,0.68]
[1766450317388,0.68,126.64,126.61,0.68]
[1766450317559,0.68,126.63,126.59,0.68]
[1766450317761,0.68,126.63,126.58,11.11767296]
[1766450317971,0.68,126.62,126.58,14.71743321]
[1766450319180,0.68,126.62,126.59,4.27976025]
[1766450320083,7.89735661,126.63,126.6,0.68]
[1766450320084,0.68,126.63,126.6,0.68]
[1766450320459,0.68,126.63,126.59,4.27976025]
[1766450323467,7.89663146,126.64,126.59,0.68]
[1766450323690,0.68,126.63,126.6,0.68]
[1766450325362,0.68,126.65,126.61,0.68]
[1766450325575,0.68,126.64,126.61,0.68]
[1766450326488,0.68,126.64,126.61,2.98202363]
[1766450328184,24.59776731,126.66,126.61,0.68]
[1766450328185,0.68,126.65,126.61,0.68]
[1766450328367,0.68,126.65,126.61,2.98202363]
[1766450328566,0.68,126.64,126.61,2.98202363]
[1766450328962,20.41615672,126.68,126.62,0.68]
[1766450329289,20.41615672,126.68,126.63,0.68]
[1766450329290,0.68,126.66,126.63,0.68]
[1766450329965,0.68,126.66,126.63,11.11767296]
[1766450330161,0.68,126.66,126.61,10.43767296]
[1766450330362,2.98202363,126.65,126.62,0.68]
[1766450330566,0.68,126.65,126.62,0.68]
[1766450330865,0.68,126.65,126.61,10.43767296]
[1766450331071,2.30202363,126.64,126.61,11.11767296]
[1766450331269,0.68,126.64,126.61,10.43767296]
[1766450331469,0.68,126.65,126.62,0.68]
[1766450332297,0.68,126.65,126.61,18.33592566]
[1766450332502,2.98202363,126.65,126.62,0.68]
[1766450333292,0.68,126.65,126.62,0.68]
[1766450333991,0.68,126.66,126.62,0.68]
[1766450334368,2.98202363,126.66,126.62,0.68]
[1766450334870,8.57521516,126.66,126.62,0.68]
[1766450335070,10.87723879,126.66,126.62,0.68]
[1766450335896,8.57521516,126.66,126.62,0.68]
[1766450336094,0.68,126.65,126.62,0.68]
[1766450337881,10.87723879,126.66,126.62,0.68]
[1766450338475,0.68,126.65,126.62,0.68]
[1766450339195,10.87723879,126.66,126.62,0.68]
[1766450339697,10.19723879,126.66,126.62,0.68]
[1766450339998,0.68,126.65,126.62,0.68]
[1766450340203,2.98202363,126.63,126.61,10.43767296]
[1766450340385,0.68,126.63,126.6,0.68]
[1766450340579,0.68,126.63,126.59,18.33680867]
[1766450340580,0.68,126.67,126.62,11.11767296]
[1766450340780,0.68,126.67,126.63,0.68]
[1766450340982,2.98202363,126.66,126.63,11.11767296]
[1766450341180,0.68,126.65,126.63,10.43767296]
[1766450341381,0.68,126.65,126.62,0.68]
[1766450341688,2.98202363,126.65,126.62,0.68]
[1766450342270,2.30202363,126.66,126.62,0.68]
[1766450342479,8.57414184,126.68,126.64,11.11767296]
[1766450342696,7.89414184,126.68,126.64,10.43767296]
[1766450342880,0.68,126.67,126.64,11.11767296]
[1766450343488,8.57454958,126.67,126.64,11.11767296]
[1766450343999,0.68,126.66,126.64,10.43767296]
[1766450344697,19.73399429,126.69,126.64,0.68]
[1766450344698,7.89328281,126.69,126.64,0.68]
[1766450344874,2.98202363,126.68,126.65,11.11767296]
[1766450345274,2.98202363,126.67,126.65,10.43767296]
[1766450345502,0.68,126.67,126.65,10.43767296]
[1766450346080,0.68,126.67,126.64,0.68]
[1766450346276,2.99202363,126.69,126.65,0.7]
[1766450346502,2.30202363,126.69,126.66,0.7]
[1766450346703,2.99202363,126.68,126.65,11.13767296]
[1766450346902,0.69,126.68,126.65,11.13767296]
[1766450347200,2.99202363,126.68,126.65,11.13767296]
[1766450347704,2.30202363,126.68,126.66,0.7]
[1766450347893,8.58290126,126.7,126.66,0.7]
[1766450348209,2.99202363,126.68,126.65,10.43767296]
[1766450348507,2.30202363,126.68,126.65,10.43767296]
[1766450348682,2.99202363,126.68,126.65,10.43767296]
[1766450349084,7.8938774,126.69,126.66,0.7]
[1766450349406,2.99202363,126.68,126.65,11.13767296]
[1766450349797,0.69,126.67,126.65,10.43767296]
[1766450350104,2.99202363,126.68,126.65,11.13767296]
[1766450350407,2.99202363,126.68,126.64,0.7]
[1766450350408,2.30202363,126.67,126.64,0.7]
[1766450350611,0.69,126.68,126.64,0.7]
[1766450350806,2.99202363,126.67,126.64,0.7]
[1766450351200,2.99202363,126.67,126.63,18.33445268]
[1766450351201,0.69,126.66,126.63,18.33445268]
[1766450351595,0.69,126.66,126.63,19.03445268]
[1766450352413,2.99202363,126.66,126.63,19.03445268]
[1766450352713,0.69,126.66,126.63,19.03445268]
[1766450353010,2.99202363,126.66,126.63,19.03445268]
[1766450353207,0.69,126.66,126.63,19.03445268]
[1766450353996,0.69,126.66,126.63,18.33445268]
[1766450354307,2.99202363,126.66,126.63,19.03445268]
[1766450355715,0.69,126.66,126.63,19.03445268]
[1766450356104,2.99202363,126.66,126.63,19.03445268]
[1766450356416,0.69,126.66,126.63,19.03445268]
[1766450357008,0.69,126.66,126.6,0.7]
[1766450357009,0.69,126.63,126.6,0.7]
[1766450357217,0.69,126.63,126.6,7.89874023]
[1766450357388,2.99202363,126.63,126.6,7.89874023]
[1766450357716,0.69,126.63,126.6,8.59874023]
[1766450357899,2.99202363,126.63,126.6,8.59874023]
[1766450358211,2.99202363,126.66,126.61,2.30202363]
[1766450358404,0.69,126.66,126.62,0.23]
[1766450358711,0.69,126.65,126.62,0.23]
[1766450359511,0.69,126.66,126.62,0.23]
[1766450359811,2.99202363,126.66,126.62,0.23]
[1766450360208,2.30202363,126.66,126.62,8.12722486]
[1766450360407,2.99202363,126.66,126.62,8.12722486]
[1766450361530,0.69,126.66,126.62,8.12722486]
[1766450361731,7.89398078,126.68,126.64,0.23]
[1766450361732,0.69,126.68,126.64,0.23]
[1766450362330,5.89275224,126.67,126.63,2.53202363]
[1766450362500,0.69,126.66,126.63,0.23]
[1766450363218,10.88593471,126.68,126.63,0.23]
[1766450363423,5.89333493,126.67,126.63,0.23]
[1766450363727,0.69,126.67,126.64,0.23]
[1766450364934,0.69,126.67,126.63,8.12701781]
[1766450366423,2.99202363,126.67,126.63,8.12701781]
[1766450366617,2.30202363,126.67,126.63,8.12701781]
[1766450366820,0.69,126.66,126.62,7.89744854]
[1766450367035,2.99202363,126.64,126.59,0.23]
[1766450367331,0.69,126.62,126.59,10.43767296]
[1766450367500,2.30202363,126.6,126.55,7.90182721]
[1766450367697,7.51404006,126.59,126.54,10.20443786]
[1766450367897,0.69,126.58,126.54,7.90241423]
[1766450368206,2.30202363,126.61,126.56,7.90134661]
[1766450368526,0.69,126.62,126.59,2.53202363]
[1766450368710,0.69,126.62,126.59,0.23]
[1766450368912,2.99202363,126.62,126.58,7.9000317]
[1766450369615,2.30202363,126.62,126.58,7.9000317]
[1766450369814,0.69,126.61,126.58,7.9000317]
[1766450370018,0.69,126.65,126.6,2.53202363]
[1766450370224,5.89767539,126.64,126.6,2.53202363]
[1766450370520,0.69,126.64,126.6,0.23]
[1766450370701,0.69,126.64,126.6,2.53202363]
[1766450371025,0.69,126.64,126.6,10.43067623]
[1766450371628,18.33294476,126.66,126.61,0.23]
[1766450371629,2.30202363,126.66,126.61,0.23]
[1766450371803,5.87806909,126.65,126.61,0.23]
[1766450371999,0.67,126.65,126.61,0.23]
[1766450372622,0.67,126.65,126.61,8.1281216]
[1766450375827,0.7,126.64,126.61,7.8981216]
[1766450376125,0.7,126.64,126.6,18.56636963]
[1766450377323,0.7,126.63,126.6,10.43767296]
[1766450377625,0.7,126.63,126.57,16.95202363]
[1766450377626,0.7,126.61,126.57,16.95202363]
[1766450377805,0.7,126.61,126.58,10.43767296]
[1766450378007,0.7,126.61,126.58,18.33759746]
[1766450378533,0.7,126.61,126.58,18.56759746]
[1766450378826,0.7,126.61,126.57,22.32058484]
[1766450379131,0.7,126.61,126.58,7.90003701]
[1766450379633,0.7,126.61,126.57,32.98826459]
[1766450380227,0.7,126.61,126.58,7.90012445]
[1766450380437,0.7,126.63,126.59,0.23]
[1766450380636,3.00202363,126.63,126.59,0.23]
[1766450380852,0.7,126.62,126.58,10.20214808]
[1766450381031,0.7,126.62,126.58,7.90012445]
[1766450381234,3.00202363,126.62,126.58,8.13012445]
[1766450381943,0.7,126.62,126.58,8.13012445]
[1766450382153,3.00202363,126.62,126.58,8.13012445]
[1766450385117,0.7,126.61,126.58,7.90012445]
[1766450385441,0.7,126.61,126.57,35.29023597]
[1766450385651,3.00202363,126.61,126.57,25.08767296]
[1766450385817,0.7,126.6,126.57,25.08767296]
[1766450386448,3.59842033,126.61,126.57,25.08767296]
[1766450386449,4.29842033,126.61,126.57,25.08767296]
[1766450387046,0.7,126.61,126.57,36.58684043]
[1766450387243,0.7,126.61,126.58,0.23]
[1766450388319,3.59842033,126.61,126.57,10.66767296]
[1766450388638,0.7,126.6,126.57,18.56840602]
[1766450388839,0.7,126.6,126.57,10.66767296]
[1766450389239,0.7,126.6,126.57,10.43767296]
[1766450389540,3.59842033,126.6,126.57,10.43767296]
[1766450389744,0.7,126.59,126.57,10.43767296]
[1766450391047,0.7,126.6,126.57,10.43767296]
[1766450392341,3.59842033,126.6,126.57,10.43767296]
[1766450392533,0.7,126.59,126.57,10.43767296]
[1766450393043,4.29842033,126.59,126.56,10.43767296]
[1766450393247,0.7,126.59,126.56,10.43767296]
[1766450393437,4.29842033,126.58,126.56,10.43767296]
[1766450393640,0.7,126.57,126.54,10.66767296]
[1766450394147,3.59842033,126.58,126.54,22.16868583]
[1766450394148,0.7,126.58,126.54,22.16868583]
[1766450394834,0.7,126.58,126.54,18.5702655]
[1766450395129,0.7,126.58,126.54,22.16868583]
[1766450395544,0.7,126.57,126.54,18.5702655]
[1766450395741,0.7,126.59,126.54,21.93868583]
[1766450395928,0.7,126.58,126.54,22.16868583]
[1766450397349,0.7,126.58,126.54,18.5702655]
[1766450397653,0.7,126.58,126.54,22.16868583]
[1766450398027,0.7,126.58,126.55,0.23]
[1766450398233,0.7,126.58,126.54,21.93868583]
[1766450398234,0.7,126.58,126.54,22.16868583]
[1766450400044,4.29842033,126.6,126.56,0.23]
[1766450400251,0.7,126.6,126.57,0.23]
[1766450400558,0.7,126.62,126.59,0.23]
[1766450401124,0.7,126.62,126.58,10.43767296]
[1766450401348,0.7,126.62,126.58,10.66767296]
[1766450401551,0.7,126.62,126.58,18.5675256]
[1766450401763,0.7,126.63,126.59,0.23]
[1766450402051,4.29842033,126.63,126.59,0.23]
[1766450402248,0.7,126.62,126.59,0.23]
[1766450404667,4.29842033,126.62,126.58,18.33765842]
[1766450404832,3.59842033,126.59,126.54,19.75596763]
[1766450405035,0.7,126.57,126.53,0.23]
[1766450405257,0.7,126.57,126.53,26.15129012]
[1766450405462,0.7,126.57,126.54,10.43767296]
[1766450407151,7.89827027,126.61,126.54,18.3399099]
[1766450407349,4.31842033,126.55,126.5,19.76201819]
[1766450407664,0.72,126.57,126.5,14.65]
[1766450407841,10.43767296,126.58,126.47,0.23]
[1766450407842,0.72,126.53,126.47,0.23]
[1766450408170,0.72,126.52,126.48,18.24842033]
[1766450408566,0.72,126.54,126.49,3.82842033]
[1766450408765,0.72,126.54,126.5,11.73353816]
[1766450409062,3.59842033,126.54,126.49,7.90535197]
[1766450409244,0.72,126.53,126.49,11.7337723]
[1766450409566,0.72,126.53,126.49,8.13535197]
[1766450409750,11.50049948,126.55,126.5,3.82842033]
[1766450410068,3.59842033,126.53,126.49,7.90535197]
[1766450410268,4.31842033,126.53,126.49,7.90535197]
[1766450410765,4.31842033,126.53,126.49,8.13535197]
[1766450411262,0.72,126.53,126.49,8.13535197]
[1766450411445,0.72,126.53,126.49,11.7337723]
[1766450411642,4.31842033,126.56,126.51,3.59842033]
[1766450411842,0.72,126.56,126.52,14.26609329]
[1766450412063,0.72,126.55,126.52,10.43767296]
[1766450412257,7.90142656,126.56,126.52,14.26609329]
[1766450412258,0.72,126.56,126.52,14.26609329]
[1766450412461,11.49925558,126.57,126.52,10.43767296]
[1766450412462,3.59842033,126.55,126.52,10.43767296]
[1766450412673,3.59842033,126.55,126.5,3.82842033]
[1766450412674,0.72,126.54,126.5,3.82842033]
[1766450412846,0.72,126.54,126.5,10.66767296]
[1766450413154,0.72,126.54,126.51,0.23]
[1766450413357,4.31842033,126.55,126.51,0.23]
[1766450414768,3.59842033,126.54,126.51,0.23]
[1766450414952,3.59842033,126.54,126.5,18.34269457]
[1766450415140,4.31842033,126.53,126.5,10.43767296]
[1766450415342,4.31842033,126.53,126.49,14.65]
[1766450415944,0.72,126.52,126.49,14.42]
[1766450416545,0.72,126.52,126.49,22.32572517]
[1766450417063,0.72,126.52,126.49,14.42]
[1766450417793,0.72,126.52,126.49,18.01842033]
[1766450417952,0.72,126.52,126.49,14.42]
[1766450418267,0.72,126.52,126.49,18.01842033]
[1766450418972,3.59842033,126.5,126.48,8.99767296]
[1766450419269,3.59842033,126.49,126.46,0.2]
[1766450419471,27.66365617,126.52,126.46,0.2]
[1766450419472,3.59842033,126.48,126.46,0.2]
[1766450420047,0.51,126.49,126.46,0.2]
[1766450420359,3.59842033,126.48,126.46,0.2]
[1766450420556,3.59842033,126.49,126.47,0.68]
[1766450420784,3.59842033,126.5,126.47,0.68]
[1766450421463,4.10842033,126.5,126.46,0.2]
[1766450421664,4.10842033,126.5,126.46,0.88]
[1766450423186,3.59842033,126.49,126.46,0.88]
[1766450423566,4.10842033,126.5,126.46,0.88]
[1766450423875,3.59842033,126.48,126.46,0.2]
[1766450424052,3.59842033,126.47,126.46,0.2]
[1766450424377,4.10842033,126.48,126.46,0.2]
[1766450424575,3.59842033,126.47,126.45,0.2]
[1766450424779,4.10842033,126.46,126.44,0.2]
[1766450425468,0.51,126.47,126.44,0.2]
[1766450425670,3.59842033,126.46,126.44,0.2]
[1766450426852,0.51,126.5,126.45,0.68]
[1766450427053,3.59842033,126.48,126.45,0.68]
[1766450428062,0.51,126.49,126.45,0.68]
[1766450428551,3.59842033,126.48,126.45,0.68]
[1766450430081,4.10842033,126.47,126.44,10.63767296]
[1766450430572,3.59842033,126.47,126.44,11.31767296]
[1766450430870,3.59842033,126.46,126.44,11.31767296]
[1766450431080,3.59842033,126.47,126.44,11.31767296]
[1766450431268,4.10842033,126.48,126.44,11.31767296]
[1766450431659,7.90451347,126.51,126.44,18.54638952]
[1766450431877,7.90451347,126.51,126.45,0.66]
[1766450431878,3.59842033,126.48,126.45,0.66]
[1766450441075,11.50485876,126.48,126.45,0.66]
[1766450441273,12.01485876,126.48,126.44,25.07767296]
[1766450441473,3.59842033,126.47,126.44,25.74767296]
[1766450441673,4.10842033,126.46,126.44,0.2]
[1766450441982,0.51,126.45,126.44,0.2]
[1766450442182,3.59842033,126.46,126.44,0.2]
[1766450443166,4.10842033,126.46,126.44,0.2]
[1766450443481,3.59842033,126.45,126.44,0.2]
[1766450443681,0.51,126.46,126.44,0.2]
[1766450443882,3.59842033,126.45,126.44,0.2]
[1766450444964,3.59842033,126.45,126.42,0.67]
[1766450444965,3.59842033,126.45,126.41,16.7062173]
[1766450445374,3.59842033,126.45,126.41,10.43767296]
[1766450445572,3.59842033,126.44,126.41,10.43767296]
[1766450445774,0.67,126.45,126.41,10.43767296]
[1766450445979,2.97897755,126.45,126.41,10.43767296]
[1766450446365,2.97897755,126.45,126.41,12.74665051]
[1766450446777,2.97897755,126.44,126.41,10.43767296]
[1766450446972,0.67,126.43,126.4,11.10767296]
[1766450447182,2.97897755,126.43,126.4,11.10767296]
[1766450447489,2.30897755,126.42,126.39,0.67]
[1766450447656,2.30897755,126.42,126.4,0.67]
[1766450447983,2.30897755,126.43,126.4,0.67]
[1766450448381,2.97897755,126.43,126.4,0.67]
[1766450448776,0.67,126.44,126.4,0.67]
[1766450448978,2.97897755,126.43,126.4,0.67]
[1766450450283,10.88807463,126.44,126.4,0.67]
[1766450450487,2.97897755,126.43,126.4,0.67]
[1766450451184,0.67,126.43,126.4,0.67]
[1766450451385,2.97897755,126.43,126.4,0.67]
[1766450452390,10.88860409,126.43,126.4,0.67]
[1766450455578,10.21860409,126.43,126.38,7.91249088]
[1766450455778,2.97897755,126.42,126.39,0.67]
[1766450456489,2.30897755,126.42,126.39,0.67]
[1766450457692,2.97897755,126.42,126.39,0.67]
[1766450458066,0.67,126.44,126.39,0.67]
[1766450458386,2.30897755,126.43,126.39,0.67]
[1766450458592,2.97897755,126.43,126.39,0.67]
[1766450458792,7.90931219,126.44,126.39,0.67]
[1766450458793,0.67,126.45,126.4,0.67]
[1766450458974,0.67,126.45,126.42,0.67]
[1766450460492,2.97897755,126.45,126.42,0.67]
[1766450462372,10.88687258,126.46,126.42,0.67]
[1766450462571,5.19202605,126.45,126.42,0.67]
[1766450462895,10.88687258,126.46,126.42,0.67]
[1766450463198,8.57789503,126.46,126.42,0.67]
[1766450463376,8.17437693,126.45,126.42,0.67]
[1766450463574,2.97897755,126.45,126.42,0.67]
[1766450463773,0.67,126.45,126.42,0.67]
[1766450463996,2.97897755,126.45,126.42,0.67]
[1766450465792,0.67,126.45,126.42,0.67]
[1766450465990,2.97897755,126.45,126.42,0.67]
[1766450467304,0.67,126.45,126.42,0.67]
[1766450467479,2.97897755,126.45,126.42,0.67]
[1766450469199,0.67,126.45,126.42,0.67]
[1766450469395,2.97897755,126.45,126.42,0.67]
[1766450472809,2.97897755,126.45,126.41,21.81]
[1766450472810,3.00897755,126.44,126.41,21.81]
[1766450473504,2.30897755,126.44,126.42,0.71]
[1766450473911,10.91741289,126.45,126.42,0.71]
[1766450482397,23.0274657,126.47,126.42,0.71]
[1766450482601,7.47226812,126.46,126.42,0.71]
[1766450482910,5.16329057,126.45,126.42,0.71]
[1766450483117,2.30897755,126.46,126.42,0.71]
[1766450483318,5.12581267,126.45,126.42,0.71]
[1766450483500,2.30897755,126.46,126.42,0.71]
[1766450483695,8.13498,126.45,126.42,0.71]
[1766450483895,3.00897755,126.45,126.42,0.71]
[1766450486210,0.7,126.45,126.42,0.71]
[1766450488019,3.00897755,126.45,126.42,0.71]
[1766450488198,5.13191032,126.44,126.42,0.71]
[1766450488406,10.91670856,126.46,126.42,0.71]
[1766450488609,5.13199004,126.45,126.42,0.71]
[1766450488913,5.13199004,126.44,126.42,0.71]
[1766450489122,3.00897755,126.45,126.42,0.71]
[1766450489291,7.44144777,126.44,126.42,0.71]
[1766450489492,3.00897755,126.45,126.42,0.71]
[1766450489693,5.13324692,126.44,126.42,0.71]
[1766450489908,3.00897755,126.45,126.42,0.71]
[1766450490108,5.13302421,126.44,126.42,0.71]